fUST/lending_fUST_20260101
["ID","MTS","AMOUNT","RATE_DAILY","PERIOD"]
[400258385,1767233443539,-284.37429516,0.0002357,17]
[400258387,1767233443548,-651.01399921,0.00023588,24]
[400258389,1767233443558,-315.72030468,0.00023592,25]
[400258391,1767233443567,-478.64049494,0.00023603,25]
[400258393,1767233443577,-468.0,0.00023603,2]
[400258395,1767233443586,-1973.55132122,0.00023621,2]
[400258397,1767233443596,-468.0,0.0002363,2]
[400258399,1767233443605,-651.01399921,0.00023656,28]
[400258401,1767233443615,-292.74838652,0.00023686,32]
[400258403,1767233443625,-21611.49,0.000237,2]
[400258405,1767233443634,-342.86503542,0.0002371,8]
[400258407,1767233443644,-284.37429516,0.0002371,25]
[400258409,1767233443653,-651.01399921,0.00023723,31]
[400258411,1767233443662,-315.72030468,0.00023731,32]
[400258413,1767233443672,-478.64049494,0.00023742,32]
[400258415,1767233443681,-468.0,0.00023759,2]
[400258417,1767233443689,-651.01399921,0.0002379,35]
[400258419,1767233443699,-468.0,0.00023802,2]
[400258421,1767233443708,-1054.64253413,0.00023835,2]
[400258423,1767233443717,-741.71,0.00023835,2]
[400258424,1767233443726,-994.95,0.00023835,2]
[400258426,1767233443735,-1377.56,0.00023835,2]
[400258428,1767233443744,-500.0,0.00023835,2]
[400258430,1767233443754,-500.0,0.00023835,2]
[400258432,1767233443763,-632.78,0.00023835,2]
[400258434,1767233443772,-500.0,0.00023835,2]
[400258436,1767233443781,-1267.28,0.00023835,2]
[400258438,1767233443791,-200.0,0.00023835,2]
[400258440,1767233443800,-200.0,0.00023835,2]
[400258442,1767233443808,-201.92828777,0.00023835,2]
[400258444,1767233443818,-7541.97,0.00023835,2]
[400258446,1767233443827,-500.0,0.00023835,2]
[400258448,1767233443836,-500.0,0.00023835,2]
[400258450,1767233443846,-4618.33,0.00023835,2]
[400258452,1767233443855,-689.27,0.00023835,2]
[400258454,1767233443864,-1292.45,0.00023835,2]
[400258456,1767233443874,-1297.56,0.00023835,2]
[400258457,1767233443883,-500.0,0.00023835,2]
[400258459,1767233443892,-994.81,0.00023835,2]
[400258460,1767233443902,-1041.02,0.00023835,2]
[400258462,1767233443910,-1307.72,0.00023835,2]
[400258464,1767233443919,-500.0,0.00023835,2]
[400258466,1767233443931,-500.0,0.00023835,2]
[400258467,1767233443939,-342.86503542,0.0002385,10]
[400258469,1767233443948,-284.37429516,0.0002385,32]
[400258471,1767233443957,-651.01399921,0.00023858,39]
[400258473,1767233443966,-574.12855637,0.00023859,2]
[400258475,1767233443977,-315.72030468,0.00023871,40]
[400258477,1767233443986,-222.49272787,0.00023882,40]
[400258480,1767233444005,-256.14776707,0.00023882,40]
[400258482,1767233444015,-1333.88008654,0.000239,2]
[400258484,1767233444024,-1333.88008654,0.000239,2]
[400258486,1767233444037,-1333.88008654,0.000239,2]
[400258488,1767233444046,-1333.88008654,0.000239,2]
[400258490,1767233444055,-1333.88008654,0.000239,2]
[400258492,1767233444064,-1333.88008654,0.000239,2]
[400258494,1767233444073,-1333.88008654,0.000239,2]
[400258496,1767233444082,-1333.88008654,0.000239,2]
[400258498,1767233444091,-1333.88008654,0.000239,2]
[400258500,1767233444100,-1333.88008654,0.000239,2]
[400258501,1767233444109,-168.0,0.00023919,2]
[400258503,1767233444119,-651.01399921,0.00023925,42]
[400258505,1767233444128,-292.74838652,0.00023964,48]
[400258507,1767233444137,-599.7286954,0.00023973,2]
[400258509,1767233444146,-160.0,0.00023984,3]
[400258511,1767233444155,-342.86503542,0.0002399,12]
[400258513,1767233444165,-284.37429516,0.0002399,40]
[400258515,1767233444174,-651.01399921,0.00023992,46]
[400258517,1767233444183,-1733.59881032,0.00024,2]
[400258519,1767233444192,-465.14283166,0.00024,2]
[400258521,1767233444201,-1041.66666667,0.00024,7]
[400258523,1767233444211,-311.8230893,0.00024,2]
[400258525,1767233444220,-315.72030468,0.0002401,48]
[400258527,1767233444229,-468.0,0.00024019,2]
[400258529,1767233444238,-478.64049494,0.00024021,48]
[400258530,1767233444247,-599.7286954,0.00024055,2]
[400258532,1767233444256,-397.7732961,0.00024055,2]
[400258534,1767233444265,-651.01399921,0.00024059,50]
[400258536,1767233444274,-272.97,0.000241,7]
[400258538,1767233444283,-1142.44,0.000241,14]
[400258540,1767233444292,-31.59329978,0.000241,7]
[400258542,1767233444307,-128.43670022,0.000241,7]
[400258544,1767233444316,-159.54683163,0.00024103,56]
[400258546,1767233444325,-1054.64253413,0.00024109,2]
[400258549,1767233444335,-741.71,0.00024109,2]
[400258550,1767233444436,-994.95,0.00024109,2]
[400258551,1767233444445,-1377.56,0.00024109,2]
[400258552,1767233444455,-500.0,0.00024109,2]
[400258553,1767233444465,-500.0,0.00024109,2]
[400258554,1767233444474,-632.78,0.00024109,2]
[400258555,1767233444483,-170.02778076,0.00024109,2]
[400258556,1767233444491,-1267.28,0.00024109,2]
[400258557,1767233444500,-7541.97,0.00024109,2]
[400258558,1767233444509,-500.0,0.00024109,2]
[400258559,1767233444519,-500.0,0.00024109,2]
[400258560,1767233444528,-4618.33,0.00024109,2]
[400258561,1767233444538,-689.27,0.00024109,2]
[400258562,1767233444547,-1292.45,0.00024109,2]
[400258563,1767233444558,-1297.56,0.00024109,2]
[400258564,1767233444568,-500.0,0.00024109,2]
[400258565,1767233444577,-994.81,0.00024109,2]
[400258566,1767233444587,-1041.02,0.00024109,2]
[400258567,1767233444597,-1307.72,0.00024109,2]
[400258568,1767233444606,-500.0,0.00024109,2]
[400258569,1767233444615,-500.0,0.00024109,2]
[400258570,1767233444625,-651.01399921,0.00024127,54]
[400258571,1767233444635,-342.86503542,0.0002413,14]
[400258572,1767233444644,-284.37429516,0.0002413,48]
[400258573,1767233444654,-171040.67722117,0.00024142,2]
[400258574,1767233444664,-315.72030468,0.0002415,56]
[400258575,1767233444673,-300.2,0.00024155,2]
[400258576,1767233444682,-478.64049494,0.0002416,56]
[400258577,1767233444692,-468.0,0.00024171,2]
[400258578,1767233444701,-651.01399921,0.00024194,57]
[400258579,1767233444710,-260.78,0.000242,2]
[400258580,1767233444719,-168.0,0.00024225,2]
[400258581,1767233444728,-416.0,0.00024242,2]
[400258582,1767233444737,-416.0,0.00024242,2]
[400258583,1767233444747,-150.143,0.00024242,2]
[400258584,1767233444756,-292.74838652,0.00024242,63]
[400258585,1767233444765,-651.01399921,0.00024261,61]
[400258586,1767233444775,-276.51214329,0.0002427,56]
[400258587,1767233444784,-165.4563905,0.0002427,56]
[400258588,1767233444793,-342.86503542,0.0002427,16]
[400258589,1767233444802,-284.37429516,0.0002427,56]
[400258590,1767233444811,-315.72030468,0.00024289,63]
[400258591,1767233444820,-478.64049494,0.000243,63]
[400258592,1767233444829,-651.01399921,0.00024329,65]
[400258593,1767233444838,-468.0,0.0002438,2]
[400258594,1767233444848,-1054.64253413,0.00024383,2]
[400258595,1767233444858,-741.71,0.00024383,2]
[400258596,1767233444867,-994.95,0.00024383,2]
[400258597,1767233444876,-1377.56,0.00024383,2]
[400258598,1767233444885,-500.0,0.00024383,2]
[400258599,1767233444894,-500.0,0.00024383,2]
[400258600,1767233444903,-632.78,0.00024383,2]
[400258601,1767233444912,-1267.28,0.00024383,2]
[400258602,1767233444921,-7541.97,0.00024383,2]
[400258603,1767233444933,-500.0,0.00024383,2]
[400258604,1767233444942,-500.0,0.00024383,2]
[400258605,1767233444951,-4618.33,0.00024383,2]
[400258606,1767233444960,-689.27,0.00024383,2]
[400258607,1767233444969,-1292.45,0.00024383,2]
[400258608,1767233444979,-1297.56,0.00024383,2]
[400258609,1767233444988,-500.0,0.00024383,2]
[400258610,1767233444999,-994.81,0.00024383,2]
[400258611,1767233445008,-1041.02,0.00024383,2]
[400258612,1767233445017,-1307.72,0.00024383,2]
[400258613,1767233445027,-500.0,0.00024383,2]
[400258614,1767233445036,-500.0,0.00024383,2]
[400258615,1767233445045,-242.38816166,0.00024394,110]
[400258616,1767233445055,-651.01399921,0.00024396,69]
[400258617,1767233445064,-595.37131296,0.00024407,2]
[400258618,1767233445073,-342.86503542,0.0002441,18]
[400258619,1767233445082,-284.37429516,0.0002441,63]
[400258620,1767233445091,-468.0,0.00024419,2]
[400258621,1767233445102,-293.44685272,0.00024425,2]
[400258622,1767233445111,-315.72030468,0.00024428,71]
[400258623,1767233445120,-478.64049494,0.00024439,71]
[400258624,1767233445130,-651.01399921,0.00024463,72]
[400258625,1767233445139,-21611.49,0.000245,2]
[400258626,1767233445148,-151.0,0.000245,2]
[400258627,1767233445157,-151.0,0.000245,2]
[400258628,1767233445166,-151.0,0.000245,2]
[400258629,1767233445176,-151.0,0.000245,2]
[400258630,1767233445186,-151.0,0.000245,2]
[400258631,1767233445195,-151.0,0.000245,2]
[400258632,1767233445204,-151.0,0.000245,2]
[400258633,1767233445213,-248.67888,0.000245,2]
[400258634,1767233445222,-491.980544,0.000245,2]
[400258635,1767233445232,-491.980544,0.000245,2]
[400258636,1767233445241,-491.980544,0.000245,2]
[400258637,1767233445250,-491.980544,0.000245,2]
[400258638,1767233445259,-428.591324,0.000245,2]
[400258639,1767233445268,-428.591324,0.000245,2]
[400258640,1767233445278,-428.591324,0.000245,2]
[400258641,1767233445287,-428.591324,0.000245,2]
[400258642,1767233445297,-231.068894,0.000245,2]
[400258643,1767233445306,-151.0,0.000245,2]
[400258644,1767233445315,-171.43251767,0.00024516,30]
[400258645,1767233445324,-292.74838652,0.0002452,79]
[400258646,1767233445333,-651.01399921,0.00024531,76]
[400258647,1767233445343,-160.0,0.00024539,4]
[400258648,1767233445353,-342.86503542,0.00024551,20]
[400258649,1767233445362,-284.37429516,0.00024551,71]
[400258650,1767233445371,-315.72030468,0.00024568,79]
[400258651,1767233445380,-478.64049494,0.00024579,79]
[400258652,1767233445389,-651.01399921,0.00024598,80]
[400258653,1767233445398,-147614.64866886,0.0002465,2]
[400258654,1767233445407,-513.6105239,0.0002465,2]
[400258655,1767233445416,-151.0,0.0002465,2]
[400258656,1767233445425,-1054.64253413,0.00024657,2]
[400258657,1767233445435,-741.71,0.00024657,2]
[400258658,1767233445444,-994.95,0.00024657,2]
[400258659,1767233445453,-1377.56,0.00024657,2]
[400258660,1767233445462,-500.0,0.00024657,2]
[400258661,1767233445471,-500.0,0.00024657,2]
[400258662,1767233445480,-632.78,0.00024657,2]
[400258663,1767233445489,-1267.28,0.00024657,2]
[400258664,1767233445499,-7541.97,0.00024657,2]
[400258665,1767233445508,-500.0,0.00024657,2]
[400258666,1767233445517,-500.0,0.00024657,2]
[400258667,1767233445527,-4618.33,0.00024657,2]
[400258668,1767233445536,-689.27,0.00024657,2]
[400258669,1767233445545,-1292.45,0.00024657,2]
[400258670,1767233445555,-1297.56,0.00024657,2]
[400258671,1767233445565,-500.0,0.00024657,2]
[400258672,1767233445574,-994.81,0.00024657,2]
[400258673,1767233445583,-1041.02,0.00024657,2]
[400258674,1767233445593,-1307.72,0.00024657,2]
[400258675,1767233445602,-500.0,0.00024657,2]
[400258676,1767233445612,-564.17594341,0.00024657,2]
[400258677,1767233445621,-376.3998898,0.00024658,2]
[400258678,1767233445631,-376.3998898,0.00024658,2]
[400258679,1767233445640,-376.3998898,0.00024658,2]
[400258680,1767233445649,-376.3998898,0.00024658,2]
[400258681,1767233445659,-376.3998898,0.00024658,2]
[400258682,1767233445668,-178.0,0.00024658,14]
[400258683,1767233445677,-150.0,0.00024658,2]
[400258684,1767233445686,-380.0,0.00024658,2]
[400258685,1767233445695,-154.9072,0.00024658,2]
[400258686,1767233445705,-500.0,0.00024658,2]
[400258687,1767233445714,-651.01399921,0.00024665,83]
[400258688,1767233445723,-342.86503542,0.00024691,22]
[400258689,1767233445732,-284.37429516,0.00024691,79]
[400258690,1767233445742,-250000.0,0.000247,3]
[400258691,1767233445752,-151.0,0.000247,7]
[400258692,1767233445761,-315.72030468,0.00024707,86]
[400258693,1767233445770,-478.64049494,0.00024718,86]
[400258694,1767233445779,-651.01399921,0.00024733,87]
[400258695,1767233445788,-16815.56649854,0.00024774,2]
[400258696,1767233445797,-500.0,0.00024795,2]
[400258697,1767233445806,-292.74838652,0.00024799,94]
[400258698,1767233445815,-603.96358766,0.000248,2]
[400258699,1767233445824,-200.0,0.000248,7]
[400258700,1767233445833,-200.0,0.000248,7]
[400258701,1767233445843,-200.0,0.000248,7]
[400258702,1767233445852,-200.0,0.000248,7]
[400258703,1767233445862,-200.0,0.000248,7]
[400258704,1767233445872,-200.0,0.000248,7]
[400258705,1767233445881,-151.0,0.000248,7]
[400258706,1767233445890,-151.0,0.000248,7]
[400258707,1767233445899,-151.0,0.000248,7]
[400258708,1767233445909,-151.0,0.000248,7]
[400258709,1767233445918,-8251.06594227,0.000248,2]
[400258716,1767233446693,-86.00521721,0.000248,2]
[400258717,1767233446823,-357485.33137552,0.000248,2]
[400258718,1767233446832,-161.188487,0.000248,7]
[400258719,1767233446841,-651.01399921,0.000248,91]
[400258720,1767233446851,-342.86503542,0.00024831,24]
[400258721,1767233446860,-284.37429516,0.00024831,86]
[400258722,1767233446869,-315.72030468,0.00024847,94]
[400258723,1767233446878,-478.64049494,0.00024858,94]
[400258724,1767233446888,-651.01399921,0.00024867,95]
[400258725,1767233446897,-151.0,0.000249,7]
[400258726,1767233446906,-201.040748,0.000249,7]
[400258727,1767233446915,-151.0,0.000249,7]
[400258728,1767233446924,-151.0,0.000249,7]
[400258729,1767233446938,-151.0,0.000249,7]
[400258730,1767233446947,-491.980544,0.000249,7]
[400258731,1767233446956,-491.980544,0.000249,7]
[400258732,1767233446965,-491.980544,0.000249,7]
[400258733,1767233446976,-491.980544,0.000249,7]
[400258734,1767233446985,-428.591324,0.000249,7]
[400258735,1767233446995,-428.591324,0.000249,7]
[400258736,1767233447006,-428.591324,0.000249,7]
[400258737,1767233447015,-428.591324,0.000249,7]
[400258738,1767233447025,-633329.597355,0.000249,2]
[400258739,1767233447034,-1054.64253413,0.00024931,2]
[400258740,1767233447043,-741.71,0.00024931,2]
[400258741,1767233447053,-994.95,0.00024931,2]
[400258742,1767233447062,-1377.56,0.00024931,2]
[400258743,1767233447071,-500.0,0.00024931,2]
[400258744,1767233447080,-504.60248072,0.00024931,2]
[400258745,1767233447089,-632.78,0.00024931,2]
[400258746,1767233447099,-1267.28,0.00024931,2]
[400258747,1767233447108,-7541.97,0.00024931,2]
[400258748,1767233447117,-500.0,0.00024931,2]
[400258749,1767233447127,-500.0,0.00024931,2]
[400258750,1767233447136,-4618.33,0.00024931,2]
[400258751,1767233447146,-689.27,0.00024931,2]
[400258752,1767233447155,-1292.45,0.00024931,2]
[400258753,1767233447165,-1297.56,0.00024931,2]
[400258754,1767233447174,-500.0,0.00024931,2]
[400258755,1767233447183,-994.81,0.00024931,2]
[400258756,1767233447192,-1041.02,0.00024931,2]
[400258757,1767233447203,-1307.72,0.00024931,2]
[400258758,1767233447211,-500.0,0.00024931,2]
[400258759,1767233447221,-326.0,0.00024932,7]
[400258760,1767233447230,-500.0,0.00024932,2]
[400258761,1767233447239,-651.01399921,0.00024935,98]
[400258762,1767233447250,-617.40005154,0.00024955,2]
[400258763,1767233447259,-342.86503542,0.00024971,26]
[400258764,1767233447268,-284.37429516,0.00024971,94]
[400258765,1767233447277,-315.72030468,0.00024986,102]
[400258766,1767233447287,-478.64049494,0.00024997,102]
[400258767,1767233447296,-10392.29269205,0.00025,2]
[400258768,1767233447305,-30414.50219373,0.00025,15]
[400258769,1767233447315,-114455.71073726,0.00025,2]
[400258770,1767233447325,-1041.66666667,0.00025,30]
[400258771,1767233447334,-272.97,0.00025,7]
[400258772,1767233447343,-1041.66666667,0.00025,3]
[400258773,1767233447352,-326.0,0.00025,7]
[400258774,1767233447362,-651.01399921,0.00025002,102]
[400258775,1767233447371,-500.0,0.00025069,2]
[400258776,1767233447382,-651.01399921,0.00025069,106]
[400258777,1767233447392,-159.54683163,0.00025077,110]
[400258778,1767233447401,-292.74838652,0.00025077,110]
[400258779,1767233447411,-160.0,0.00025094,5]
[400258780,1767233447420,-342.86503542,0.00025111,28]
[400258781,1767233447431,-284.37429516,0.00025111,102]
[400258782,1767233447440,-315.72030468,0.00025125,110]
[400258783,1767233447449,-651.01399921,0.00025137,110]
[400258784,1767233447459,-566.44723317,0.00025178,2]
[400258785,1767233447469,-579.57875916,0.000252,5]
[400258786,1767233447478,-165.66,0.000252,7]
[400258787,1767233447487,-1054.64253413,0.00025205,2]
[400258788,1767233447496,-741.71,0.00025205,2]
[400258789,1767233447506,-994.95,0.00025205,2]
[400258790,1767233447515,-1377.56,0.00025205,2]
[400258791,1767233447524,-500.0,0.00025205,2]
[400258792,1767233447534,-632.78,0.00025205,2]
[400258793,1767233447544,-1267.28,0.00025205,2]
[400258794,1767233447553,-7541.97,0.00025205,2]
[400258795,1767233447563,-500.0,0.00025205,2]
[400258796,1767233447573,-500.0,0.00025205,2]
[400258797,1767233447582,-4618.33,0.00025205,2]
[400258798,1767233447592,-689.27,0.00025205,2]
[400258799,1767233447602,-1292.45,0.00025205,2]
[400258800,1767233447611,-1297.56,0.00025205,2]
[400258801,1767233447622,-500.0,0.00025205,2]
[400258802,1767233447631,-994.81,0.00025205,2]
[400258803,1767233447640,-1041.02,0.00025205,2]
[400258804,1767233447649,-1307.72,0.00025205,2]
[400258805,1767233447659,-500.0,0.00025205,2]
[400258806,1767233447672,-250.0,0.00025205,2]
[400258807,1767233447681,-500.0,0.00025206,2]
[400258808,1767233447690,-276.51214329,0.00025251,110]
[400258809,1767233447699,-284.37429516,0.00025251,110]
[400258810,1767233447709,-21611.49,0.000253,2]
[400258811,1767233447719,-500.0,0.00025343,2]
[400258812,1767233447728,-900.0,0.00025469,3]
[400258813,1767233447737,-1054.64253413,0.00025479,2]
[400258814,1767233447746,-741.71,0.00025479,2]
[400258815,1767233447756,-994.95,0.00025479,2]
[400258816,1767233447766,-1377.56,0.00025479,2]
[400258817,1767233447775,-500.0,0.00025479,2]
[400258818,1767233447784,-632.78,0.00025479,2]
[400258819,1767233447793,-1267.28,0.00025479,2]
[400258820,1767233447803,-7541.97,0.00025479,2]
[400258821,1767233447812,-500.0,0.00025479,2]
[400258822,1767233447822,-500.0,0.00025479,2]
[400258823,1767233447832,-4618.33,0.00025479,2]
[400258824,1767233447841,-689.27,0.00025479,2]
[400258825,1767233447850,-1292.45,0.00025479,2]
[400258826,1767233447859,-1297.56,0.00025479,2]
[400258827,1767233447869,-500.0,0.00025479,2]
[400258828,1767233447878,-994.81,0.00025479,2]
[400258829,1767233447887,-1041.02,0.00025479,2]
[400258830,1767233447897,-1307.72,0.00025479,2]
[400258831,1767233447906,-158.00435504,0.00025479,2]
[400258832,1767233447916,-500.0,0.0002548,2]
[400258833,1767233447925,-182262.81340394,0.000255,7]
[400258834,1767233447939,-1000.0,0.000255,2]
[400258835,1767233447948,-260.78,0.000255,2]
[400258836,1767233447957,-151.0,0.000255,7]
[400258837,1767233447966,-151.0,0.000255,7]
[400258838,1767233447977,-151.0,0.000255,7]
[400258839,1767233447986,-151.0,0.000255,7]
[400258840,1767233447995,-151.0,0.000255,7]
[400258841,1767233448005,-151.0,0.000255,7]
[400258842,1767233448015,-151.0,0.000255,7]
[400258843,1767233448024,-491.980544,0.000255,7]
[400258844,1767233448034,-491.980544,0.000255,7]
[400258845,1767233448044,-491.980544,0.000255,7]
[400258846,1767233448054,-491.980544,0.000255,7]
[400258847,1767233448063,-428.591324,0.000255,7]
[400258848,1767233448072,-428.591324,0.000255,7]
[400258849,1767233448082,-428.591324,0.000255,7]
[400258850,1767233448091,-428.591324,0.000255,7]
[400258851,1767233448100,-640.24385345,0.00025503,2]
[400258852,1767233448110,-1080.36507781,0.00025567,2]
[400258853,1767233448119,-376.3998898,0.00025616,2]
[400258854,1767233448128,-376.3998898,0.00025616,2]
[400258855,1767233448137,-376.3998898,0.00025616,2]
[400258856,1767233448146,-376.3998898,0.00025616,2]
[400258857,1767233448155,-376.3998898,0.00025616,2]
[400258858,1767233448164,-376.3998898,0.00025616,2]
[400258859,1767233448173,-381.5752694,0.00025616,2]
[400258860,1767233448183,-376.3998898,0.00025616,2]
[400258861,1767233448192,-376.3998898,0.00025616,2]
[400258862,1767233448201,-376.3998898,0.00025616,2]
[400258863,1767233448210,-376.3998898,0.00025616,2]
[400258864,1767233448220,-372.9503929,0.00025616,2]
[400258865,1767233448229,-500.0,0.00025617,2]
[400258866,1767233448239,-376.3998898,0.00025644,2]
[400258867,1767233448248,-376.3998898,0.00025644,2]
[400258868,1767233448257,-376.3998898,0.00025644,2]
[400258869,1767233448266,-376.3998898,0.00025644,2]
[400258870,1767233448275,-376.3998898,0.00025644,2]
[400258871,1767233448285,-376.3998898,0.00025644,2]
[400258872,1767233448294,-376.3998898,0.00025644,2]
[400258873,1767233448303,-376.3998898,0.00025644,2]
[400258874,1767233448313,-376.3998898,0.00025644,2]
[400258875,1767233448322,-376.3998898,0.00025644,2]
[400258876,1767233448332,-376.3998898,0.00025644,2]
[400258877,1767233448341,-376.3998898,0.00025644,2]
[400258878,1767233448350,-376.3998898,0.00025644,2]
[400258879,1767233448360,-160.0,0.00025649,6]
[400258880,1767233448370,-1054.64253413,0.00025753,2]
[400258881,1767233448379,-741.71,0.00025753,2]
[400258882,1767233448388,-994.95,0.00025753,2]
[400258883,1767233448397,-1377.56,0.00025753,2]
[400258884,1767233448499,-500.0,0.00025753,2]
[400258885,1767233448509,-632.78,0.00025753,2]
[400258886,1767233448520,-1267.28,0.00025753,2]
[400258887,1767233448529,-7541.97,0.00025753,2]
[400258888,1767233448539,-500.0,0.00025753,2]
[400258889,1767233448548,-523.49966148,0.00025753,2]
[400258890,1767233448558,-4618.33,0.00025753,2]
[400258891,1767233448567,-689.27,0.00025753,2]
[400258892,1767233448577,-1292.45,0.00025753,2]
[400258893,1767233448587,-1297.56,0.00025753,2]
[400258894,1767233448597,-604.64259254,0.00025753,2]
[400258895,1767233448607,-994.81,0.00025753,2]
[400258896,1767233448616,-1041.02,0.00025753,2]
[400258897,1767233448626,-1307.72,0.00025753,2]
[400258898,1767233448636,-180.0,0.00025753,17]
[400258899,1767233448645,-350.0,0.00025753,2]
[400258900,1767233448654,-500.0,0.00025754,2]
[400258901,1767233448664,-1041.66666667,0.000258,3]
[400258902,1767233448673,-3800.747079,0.00025805,2]
[400258903,1767233448684,-19056.3993138,0.00025805,2]
[400258904,1767233448693,-300.2,0.00025811,2]
[400258905,1767233448703,-326.0,0.0002589,7]
[400258906,1767233448712,-500.0,0.00025891,2]
[400258907,1767233448722,-39750.25710912,0.00026,10]
[400258908,1767233448731,-529.34920278,0.00026,2]
[400258909,1767233448741,-19489.81,0.00026,2]
[400258910,1767233448750,-1041.66666667,0.00026,10]
[400258911,1767233448759,-161.0,0.00026,5]
[400258912,1767233448770,-1041.66666667,0.00026,7]
[400258913,1767233448780,-272.97,0.00026,7]
[400258914,1767233448789,-1054.64253413,0.00026027,2]
[400258915,1767233448799,-741.71,0.00026027,2]
[400258916,1767233448808,-994.95,0.00026027,2]
[400258917,1767233448818,-1377.56,0.00026027,2]
[400258918,1767233448827,-500.0,0.00026027,2]
[400258919,1767233448836,-632.78,0.00026027,2]
[400258920,1767233448846,-1267.28,0.00026027,2]
[400258921,1767233448855,-7541.97,0.00026027,2]
[400258922,1767233448865,-500.0,0.00026027,2]
[400258923,1767233448874,-4618.33,0.00026027,2]
[400258924,1767233448883,-689.27,0.00026027,2]
[400258925,1767233448892,-1292.45,0.00026027,2]
[400258926,1767233448902,-1297.56,0.00026027,2]
[400258927,1767233448911,-994.81,0.00026027,2]
[400258928,1767233448920,-1041.02,0.00026027,2]
[400258929,1767233448933,-1307.72,0.00026027,2]
[400258930,1767233448942,-500.0,0.00026028,2]
[400258931,1767233448952,-663.93287602,0.00026051,2]
[400258932,1767233448961,-21611.49,0.000261,2]
[400258933,1767233448972,-500.0,0.00026165,2]
[400258934,1767233448982,-160.0,0.00026204,7]
[400258935,1767233448991,-1054.64253413,0.00026301,2]
[400258936,1767233449002,-741.71,0.00026301,2]
[400258937,1767233449011,-994.95,0.00026301,2]
[400258938,1767233449021,-1377.56,0.00026301,2]
[400258939,1767233449030,-500.0,0.00026301,2]
[400258940,1767233449040,-632.78,0.00026301,2]
[400258941,1767233449050,-1267.28,0.00026301,2]
[400258942,1767233449060,-7541.97,0.00026301,2]
[400258943,1767233449070,-500.0,0.00026301,2]
[400258944,1767233449080,-4618.33,0.00026301,2]
[400258945,1767233449090,-689.27,0.00026301,2]
[400258946,1767233449100,-1292.45,0.00026301,2]
[400258947,1767233449109,-1297.56,0.00026301,2]
[400258948,1767233449120,-994.81,0.00026301,2]
[400258949,1767233449130,-1041.02,0.00026301,2]
[400258950,1767233449139,-1307.72,0.00026301,2]
[400258951,1767233449149,-450.0,0.00026301,2]
[400258952,1767233449160,-500.0,0.00026302,2]
[400258953,1767233449170,-500.0,0.00026439,2]
[400258954,1767233449179,-848.0613044,0.00026452,2]
[400258955,1767233449189,-4252.0574307,0.00026452,2]
[400258956,1767233449199,-1041.66666667,0.000265,3]
[400258957,1767233449209,-150.244,0.00026566,2]
[400258958,1767233449218,-150.0,0.00026566,2]
[400258959,1767233449227,-150.173,0.00026566,2]
[400258960,1767233449237,-150.395,0.00026566,2]
[400258961,1767233449247,-250.0,0.00026566,2]
[400258962,1767233449256,-151.738,0.00026566,2]
[400258963,1767233449266,-628.0,0.00026566,2]
[400258964,1767233449276,-2157.0,0.00026566,2]
[400258965,1767233449285,-1364.0,0.00026566,2]
[400258966,1767233449296,-1054.64253413,0.00026575,2]
[400258967,1767233449306,-741.71,0.00026575,2]
[400258968,1767233449316,-994.95,0.00026575,2]
[400258969,1767233449326,-1377.56,0.00026575,2]
[400258970,1767233449336,-500.0,0.00026575,2]